[Event "Titled Tuesday Blitz August 31 2021"]
[White "Bazarov, Konstantin"]
[Black "Wong, Yinn Long"]
[WhiteFideId "4137000"]
[BlackFideId "5707684"]
[WhiteElo "2551"]
[BlackElo "2711"]
[Result "0-1"]
[Round "08"]
[TimeControl "180+1"]
[Date "2021.08.31"]
[WhiteClock "0:00:01"]
[BlackClock "0:00:04"]

1. d4 {[%clk 0:03:00]}  e6 {[%clk 0:02:59]} 2. c4 {[%clk 0:03:01]}  b6 {[%clk 0:02:59]} 3. f3 {[%clk 0:02:57]}  Bb7 {[%clk 0:02:33]} 4. e4 {[%clk 0:02:55]}  f5 {[%clk 0:02:18]} 5. exf5 {[%clk 0:02:49]}  exf5 {[%clk 0:02:19]} 6. Be3 {[%clk 0:02:47]}  Bd6 {[%clk 0:02:14]} 7. Bd3 {[%clk 0:02:42]}  Qf6 {[%clk 0:02:07]} 8. Nc3 {[%clk 0:02:38]}  Ne7 {[%clk 0:02:01]} 9. Qd2 {[%clk 0:02:35]}  O-O {[%clk 0:01:57]} 10. O-O-O {[%clk 0:02:31]}  a6 {[%clk 0:01:46]} 11. Nge2 {[%clk 0:02:30]}  Nbc6 {[%clk 0:01:39]} 12. a3 {[%clk 0:02:17]}  Rae8 {[%clk 0:01:39]} 13. Kb1 {[%clk 0:02:16]}  Kh8 {[%clk 0:01:32]} 14. Rdf1 {[%clk 0:02:11]}  Ng6 {[%clk 0:01:32]} 15. Nd5 {[%clk 0:02:07]}  Qf7 {[%clk 0:01:32]} 16. f4 {[%clk 0:01:53]}  Nce7 {[%clk 0:01:31]} 17. Ndc3 {[%clk 0:01:51]}  c5 {[%clk 0:01:19]} 18. d5 {[%clk 0:01:50]}  b5 {[%clk 0:01:17]} 19. cxb5 {[%clk 0:01:49]}  Nxd5 {[%clk 0:01:17]} 20. Nxd5 {[%clk 0:01:42]}  Bxd5 {[%clk 0:01:15]} 21. Nc3 {[%clk 0:01:42]}  Be6 {[%clk 0:01:05]} 22. h4 {[%clk 0:01:22]}  Rb8 {[%clk 0:00:57]} 23. h5 {[%clk 0:01:20]}  Ne7 {[%clk 0:00:57]} 24. h6 {[%clk 0:01:15]}  g6 {[%clk 0:00:56]} 25. bxa6 {[%clk 0:01:12]}  c4 {[%clk 0:00:53]} 26. Bc2 {[%clk 0:01:11]}  Bxa3 {[%clk 0:00:53]} 27. Bd4+ {[%clk 0:01:11]}  Kg8 {[%clk 0:00:53]} 28. Na4 {[%clk 0:00:59]}  Nc6 {[%clk 0:00:51]} 29. Bc3 {[%clk 0:00:56]}  Bb4 {[%clk 0:00:45]} 30. Rd1 {[%clk 0:00:45]}  Bxc3 {[%clk 0:00:41]} 31. Qxc3 {[%clk 0:00:40]}  d5 {[%clk 0:00:30]} 32. Rhe1 {[%clk 0:00:35]}  d4 {[%clk 0:00:28]} 33. Rxd4 {[%clk 0:00:34]}  Nxd4 {[%clk 0:00:29]} 34. Qxd4 {[%clk 0:00:34]}  Rfe8 {[%clk 0:00:23]} 35. Nc5 {[%clk 0:00:30]}  Bd5 {[%clk 0:00:23]} 36. Rd1 {[%clk 0:00:27]}  Red8 {[%clk 0:00:18]} 37. Qe5 {[%clk 0:00:20]}  Ra8 {[%clk 0:00:17]} 38. g4 {[%clk 0:00:16]}  c3 {[%clk 0:00:16]} 39. Qxc3 {[%clk 0:00:14]}  Ba2+ {[%clk 0:00:16]} 40. Kc1 {[%clk 0:00:13]}  Rxd1+ {[%clk 0:00:16]} 41. Bxd1 {[%clk 0:00:12]}  Bd5 {[%clk 0:00:17]} 42. gxf5 {[%clk 0:00:12]}  gxf5 {[%clk 0:00:18]} 43. Bc2 {[%clk 0:00:11]}  Qg6 {[%clk 0:00:14]} 44. b4 {[%clk 0:00:10]}  Qxh6 {[%clk 0:00:12]} 45. Qe5 {[%clk 0:00:10]}  Bf7 {[%clk 0:00:08]} 46. Nd7 {[%clk 0:00:09]}  Qh1+ {[%clk 0:00:07]} 47. Kb2 {[%clk 0:00:08]}  Rxa6 {[%clk 0:00:07]} 48. Nf6+ {[%clk 0:00:08]}  Kf8 {[%clk 0:00:08]} 49. Nd7+ {[%clk 0:00:07]}  Kg8 {[%clk 0:00:08]} 50. Qb8+ {[%clk 0:00:06]}  Kg7 {[%clk 0:00:07]} 51. Qe5+ {[%clk 0:00:07]}  Kh6 {[%clk 0:00:05]} 52. Qxf5 {[%clk 0:00:05]}  Qh5 {[%clk 0:00:05]} 53. Qe4 {[%clk 0:00:03]}  Re6 {[%clk 0:00:04]} 54. Ne5 {[%clk 0:00:03]}  Bg6 {[%clk 0:00:03]} 55. Qd4 {[%clk 0:00:02]}  Bxc2 {[%clk 0:00:03]} 56. Kxc2 {[%clk 0:00:02]}  Qe2+ {[%clk 0:00:04]} 57. Kb3 {[%clk 0:00:03]}  Qg2 {[%clk 0:00:02]} 58. Kc4 {[%clk 0:00:03]}  Qg3 {[%clk 0:00:03]} 59. Kd5 {[%clk 0:00:02]}  Rf6 {[%clk 0:00:04]} 60. f5 {[%clk 0:00:01]}  Qg2+ {[%clk 0:00:04]} 0-1


[Site "https://www.chess.com"]

[Event "Titled Tuesday Blitz August 31 2021"]
[White "Blomqvist, Erik"]
[Black "Hansen, Sune Berg"]
[WhiteFideId "1709437"]
[BlackFideId "1400266"]
[WhiteElo "2590"]
[BlackElo "2727"]
[Result "0-1"]
[Round "08"]
[TimeControl "180+1"]
[Date "2021.08.31"]
[WhiteClock "0:00:06"]
[BlackClock "0:00:18"]

1. e4 {[%clk 0:03:00]}  e5 {[%clk 0:02:59]} 2. Nf3 {[%clk 0:02:59]}  Nc6 {[%clk 0:03:00]} 3. Bb5 {[%clk 0:02:58]}  a6 {[%clk 0:02:59]} 4. Ba4 {[%clk 0:02:58]}  d6 {[%clk 0:02:59]} 5. O-O {[%clk 0:02:49]}  Bd7 {[%clk 0:02:59]} 6. c3 {[%clk 0:02:45]}  g6 {[%clk 0:02:58]} 7. d4 {[%clk 0:02:45]}  Bg7 {[%clk 0:02:59]} 8. dxe5 {[%clk 0:02:38]}  dxe5 {[%clk 0:02:54]} 9. Bg5 {[%clk 0:02:27]}  Nge7 {[%clk 0:02:37]} 10. Nbd2 {[%clk 0:02:26]}  O-O {[%clk 0:02:34]} 11. Re1 {[%clk 0:02:17]}  Qe8 {[%clk 0:02:32]} 12. Qe2 {[%clk 0:02:04]}  Nc8 {[%clk 0:02:19]} 13. Rad1 {[%clk 0:01:54]}  Kh8 {[%clk 0:02:16]} 14. Bc2 {[%clk 0:01:51]}  Nd6 {[%clk 0:02:04]} 15. h3 {[%clk 0:01:32]}  Be6 {[%clk 0:02:01]} 16. Bb3 {[%clk 0:01:29]}  Na5 {[%clk 0:01:55]} 17. Bxe6 {[%clk 0:01:24]}  Qxe6 {[%clk 0:01:56]} 18. b3 {[%clk 0:01:21]}  Nc6 {[%clk 0:01:41]} 19. Be3 {[%clk 0:00:59]}  b6 {[%clk 0:01:41]} 20. c4 {[%clk 0:00:45]}  Nb7 {[%clk 0:01:37]} 21. Nb1 {[%clk 0:00:44]}  f5 {[%clk 0:01:22]} 22. exf5 {[%clk 0:00:39]}  gxf5 {[%clk 0:01:21]} 23. Nc3 {[%clk 0:00:37]}  h6 {[%clk 0:00:51]} 24. Nd5 {[%clk 0:00:37]}  Rf7 {[%clk 0:00:50]} 25. Bc1 {[%clk 0:00:24]}  Nc5 {[%clk 0:00:44]} 26. Bb2 {[%clk 0:00:20]}  e4 {[%clk 0:00:43]} 27. Bxg7+ {[%clk 0:00:15]}  Rxg7 {[%clk 0:00:43]} 28. Nh4 {[%clk 0:00:14]}  Rag8 {[%clk 0:00:40]} 29. Qh5 {[%clk 0:00:13]}  Rg5 {[%clk 0:00:33]} 30. Qe2 {[%clk 0:00:12]}  Qf7 {[%clk 0:00:32]} 31. Nf4 {[%clk 0:00:09]}  Ne5 {[%clk 0:00:31]} 32. Rd5 {[%clk 0:00:09]}  Ncd3 {[%clk 0:00:30]} 33. Nxd3 {[%clk 0:00:09]}  Nxd3 {[%clk 0:00:30]} 34. Rxd3 {[%clk 0:00:10]}  exd3 {[%clk 0:00:29]} 35. Qxd3 {[%clk 0:00:11]}  Qf6 {[%clk 0:00:29]} 36. Qd5 {[%clk 0:00:06]}  f4 {[%clk 0:00:27]} 37. Re6 {[%clk 0:00:06]}  Qa1+ {[%clk 0:00:18]} 38. Kh2 {[%clk 0:00:06]}  Rxd5 {[%clk 0:00:18]} 0-1


[Site "https://www.chess.com"]

[Event "Titled Tuesday Blitz August 31 2021"]
[White "Brunello, Marina"]
[Black "Shahade, Gregory"]
[WhiteFideId "822590"]
[BlackFideId "2009064"]
[WhiteElo "2328"]
[BlackElo "2663"]
[Result "0-1"]
[Round "08"]
[TimeControl "180+1"]
[Date "2021.08.31"]
[WhiteClock "0:00:14"]
[BlackClock "0:00:15"]

1. e4 {[%clk 0:02:55]}  e5 {[%clk 0:02:59]} 2. Nf3 {[%clk 0:02:55]}  Nc6 {[%clk 0:03:00]} 3. Bc4 {[%clk 0:02:55]}  Nf6 {[%clk 0:03:00]} 4. d3 {[%clk 0:02:54]}  Bc5 {[%clk 0:03:00]} 5. O-O {[%clk 0:02:54]}  a6 {[%clk 0:03:00]} 6. c3 {[%clk 0:02:51]}  Ba7 {[%clk 0:02:59]} 7. Bb3 {[%clk 0:02:47]}  d6 {[%clk 0:02:58]} 8. Be3 {[%clk 0:02:47]}  Bxe3 {[%clk 0:02:56]} 9. fxe3 {[%clk 0:02:47]}  Ne7 {[%clk 0:02:53]} 10. Nh4 {[%clk 0:02:45]}  O-O {[%clk 0:02:53]} 11. Nd2 {[%clk 0:02:44]}  Kh8 {[%clk 0:02:52]} 12. h3 {[%clk 0:02:29]}  Neg8 {[%clk 0:02:52]} 13. Qe1 {[%clk 0:02:09]}  Be6 {[%clk 0:02:45]} 14. Bc2 {[%clk 0:02:08]}  g6 {[%clk 0:02:44]} 15. Qg3 {[%clk 0:02:06]}  Nh5 {[%clk 0:02:38]} 16. Qe1 {[%clk 0:02:04]}  Qg5 {[%clk 0:02:29]} 17. Nhf3 {[%clk 0:02:03]}  Qg3 {[%clk 0:02:25]} 18. Qxg3 {[%clk 0:02:03]}  Nxg3 {[%clk 0:02:26]} 19. Rf2 {[%clk 0:02:02]}  h6 {[%clk 0:02:19]} 20. Kh2 {[%clk 0:02:01]}  Nh5 {[%clk 0:02:16]} 21. b4 {[%clk 0:01:53]}  Kg7 {[%clk 0:02:07]} 22. g4 {[%clk 0:01:51]}  Nhf6 {[%clk 0:02:06]} 23. Kg3 {[%clk 0:01:49]}  Nh7 {[%clk 0:01:58]} 24. d4 {[%clk 0:01:48]}  f6 {[%clk 0:01:53]} 25. d5 {[%clk 0:01:47]}  Bd7 {[%clk 0:01:52]} 26. Rff1 {[%clk 0:01:45]}  Ng5 {[%clk 0:01:51]} 27. c4 {[%clk 0:01:39]}  a5 {[%clk 0:01:42]} 28. a3 {[%clk 0:01:38]}  axb4 {[%clk 0:01:34]} 29. axb4 {[%clk 0:01:38]}  b6 {[%clk 0:01:35]} 30. h4 {[%clk 0:01:27]}  Nxf3 {[%clk 0:01:31]} 31. Nxf3 {[%clk 0:01:20]}  Ne7 {[%clk 0:01:30]} 32. Nd2 {[%clk 0:01:10]}  Rfb8 {[%clk 0:01:03]} 33. h5 {[%clk 0:00:51]}  gxh5 {[%clk 0:01:00]} 34. gxh5 {[%clk 0:00:52]}  Kf7 {[%clk 0:00:59]} 35. Nf3 {[%clk 0:00:48]}  Rg8+ {[%clk 0:00:58]} 36. Kf2 {[%clk 0:00:46]}  Bg4 {[%clk 0:00:53]} 37. Rxa8 {[%clk 0:00:37]}  Rxa8 {[%clk 0:00:53]} 38. Bd1 {[%clk 0:00:37]}  Ra2+ {[%clk 0:00:41]} 39. Kg3 {[%clk 0:00:37]}  Bd7 {[%clk 0:00:29]} 40. Nh4 {[%clk 0:00:21]}  Rd2 {[%clk 0:00:26]} 41. Re1 {[%clk 0:00:17]}  Rd3 {[%clk 0:00:21]} 42. Bg4 {[%clk 0:00:16]}  Bxg4 {[%clk 0:00:20]} 43. Kxg4 {[%clk 0:00:16]}  Rc3 {[%clk 0:00:20]} 44. c5 {[%clk 0:00:16]}  dxc5 {[%clk 0:00:18]} 45. bxc5 {[%clk 0:00:16]}  Rxc5 {[%clk 0:00:18]} 46. Nf5 {[%clk 0:00:15]}  Nxf5 {[%clk 0:00:17]} 47. Kxf5 {[%clk 0:00:15]}  Rc2 {[%clk 0:00:17]} 48. Ra1 {[%clk 0:00:14]}  Rg2 {[%clk 0:00:15]} 0-1


[Site "https://www.chess.com"]

[Event "Titled Tuesday Blitz August 31 2021"]
[White "Chen, Max"]
[Black "Assaubayeva, Bibisara"]
[WhiteFideId "2622440"]
[BlackFideId "13708694"]
[WhiteElo "2473"]
[BlackElo "2232"]
[Result "0-1"]
[Round "08"]
[TimeControl "180+1"]
[Date "2021.08.31"]
[WhiteClock "0:01:02"]
[BlackClock "0:01:14"]

1. e4 {[%clk 0:02:56]}  c5 {[%clk 0:03:00]} 2. c3 {[%clk 0:02:50]}  Nf6 {[%clk 0:02:59]} 3. e5 {[%clk 0:02:50]}  Nd5 {[%clk 0:03:00]} 4. d4 {[%clk 0:02:50]}  cxd4 {[%clk 0:03:01]} 5. cxd4 {[%clk 0:02:51]}  d6 {[%clk 0:03:01]} 6. Nf3 {[%clk 0:02:50]}  Nc6 {[%clk 0:03:00]} 7. Bc4 {[%clk 0:02:50]}  e6 {[%clk 0:03:01]} 8. O-O {[%clk 0:02:49]}  Be7 {[%clk 0:03:01]} 9. Bxd5 {[%clk 0:02:48]}  exd5 {[%clk 0:03:00]} 10. Nc3 {[%clk 0:02:48]}  Be6 {[%clk 0:02:54]} 11. Re1 {[%clk 0:02:46]}  dxe5 {[%clk 0:02:54]} 12. Nxe5 {[%clk 0:02:46]}  Nxe5 {[%clk 0:02:52]} 13. dxe5 {[%clk 0:02:45]}  O-O {[%clk 0:02:45]} 14. Nb5 {[%clk 0:02:44]}  Rc8 {[%clk 0:02:39]} 15. Nd4 {[%clk 0:02:41]}  Qb6 {[%clk 0:02:39]} 16. b3 {[%clk 0:02:39]}  Bb4 {[%clk 0:02:35]} 17. Nxe6 {[%clk 0:02:23]}  Bxe1 {[%clk 0:02:30]} 18. Qxe1 {[%clk 0:02:18]}  fxe6 {[%clk 0:02:27]} 19. Be3 {[%clk 0:02:16]}  d4 {[%clk 0:02:27]} 20. Bg5 {[%clk 0:02:16]}  Rf5 {[%clk 0:02:24]} 21. h4 {[%clk 0:02:13]}  h6 {[%clk 0:02:24]} 22. Bd2 {[%clk 0:02:10]}  Qb5 {[%clk 0:02:18]} 23. f4 {[%clk 0:01:59]}  Rc2 {[%clk 0:02:12]} 24. Rc1 {[%clk 0:01:54]}  d3 {[%clk 0:02:12]} 25. Qe4 {[%clk 0:01:42]}  Qc5+ {[%clk 0:02:04]} 26. Qe3 {[%clk 0:01:42]}  Qxe3+ {[%clk 0:01:55]} 27. Bxe3 {[%clk 0:01:42]}  Rf8 {[%clk 0:01:54]} 28. Rd1 {[%clk 0:01:37]}  Rd8 {[%clk 0:01:51]} 29. Bxa7 {[%clk 0:01:35]}  Rxa2 {[%clk 0:01:47]} 30. Bb6 {[%clk 0:01:33]}  Rd5 {[%clk 0:01:44]} 31. b4 {[%clk 0:01:27]}  Re2 {[%clk 0:01:35]} 32. Bc5 {[%clk 0:01:19]}  d2 {[%clk 0:01:28]} 33. Kf1 {[%clk 0:01:19]}  Re4 {[%clk 0:01:28]} 34. g3 {[%clk 0:01:19]}  Rd3 {[%clk 0:01:26]} 35. Kf2 {[%clk 0:01:17]}  h5 {[%clk 0:01:27]} 36. Bd6 {[%clk 0:01:12]}  b6 {[%clk 0:01:22]} 37. Be7 {[%clk 0:01:09]}  Kf7 {[%clk 0:01:21]} 38. Bd6 {[%clk 0:01:09]}  Kg6 {[%clk 0:01:21]} 39. b5 {[%clk 0:01:03]}  Kf5 {[%clk 0:01:16]} 40. Bc7 {[%clk 0:01:03]}  Kg4 {[%clk 0:01:14]} 41. Bxb6 {[%clk 0:01:03]}  Rf3+ {[%clk 0:01:14]} 42. Kg2 {[%clk 0:01:02]}  Re2+ {[%clk 0:01:14]} 0-1


[Site "https://www.chess.com"]

[Event "Titled Tuesday Blitz August 31 2021"]
[White "Cunha, Lucas Aguiar"]
[Black "Ljukin, Sergei"]
[WhiteFideId "2125404"]
[BlackFideId "14102200"]
[WhiteElo "2361"]
[BlackElo "2309"]
[Result "0-1"]
[Round "08"]
[TimeControl "180+1"]
[Date "2021.08.31"]
[WhiteClock "0:00:10"]
[BlackClock "0:00:17"]

1. e4 {[%clk 0:03:00]}  e6 {[%clk 0:02:59]} 2. d4 {[%clk 0:03:00]}  d5 {[%clk 0:02:58]} 3. e5 {[%clk 0:03:00]}  c5 {[%clk 0:02:58]} 4. c3 {[%clk 0:03:00]}  Nc6 {[%clk 0:02:59]} 5. Nf3 {[%clk 0:03:01]}  Qb6 {[%clk 0:02:59]} 6. a3 {[%clk 0:03:01]}  f6 {[%clk 0:03:00]} 7. Bd3 {[%clk 0:02:58]}  c4 {[%clk 0:02:58]} 8. Bc2 {[%clk 0:02:57]}  fxe5 {[%clk 0:02:58]} 9. dxe5 {[%clk 0:02:55]}  g6 {[%clk 0:02:51]} 10. O-O {[%clk 0:02:49]}  Bg7 {[%clk 0:02:50]} 11. Qe2 {[%clk 0:02:42]}  Nh6 {[%clk 0:02:49]} 12. Bf4 {[%clk 0:02:36]}  O-O {[%clk 0:02:39]} 13. g3 {[%clk 0:02:29]}  Qxb2 {[%clk 0:02:36]} 14. Qd2 {[%clk 0:01:45]}  Rxf4 {[%clk 0:01:26]} 15. gxf4 {[%clk 0:01:43]}  Qxa1 {[%clk 0:01:26]} 16. Ba4 {[%clk 0:01:42]}  Bd7 {[%clk 0:01:16]} 17. Bxc6 {[%clk 0:01:28]}  bxc6 {[%clk 0:01:11]} 18. Nd4 {[%clk 0:01:11]}  Rb8 {[%clk 0:01:09]} 19. Nc2 {[%clk 0:01:07]}  Qb2 {[%clk 0:00:47]} 20. Nb4 {[%clk 0:00:48]}  Qxd2 {[%clk 0:00:45]} 21. Nxd2 {[%clk 0:00:49]}  Rb6 {[%clk 0:00:40]} 22. Nf3 {[%clk 0:00:45]}  a5 {[%clk 0:00:38]} 23. Nc2 {[%clk 0:00:45]}  c5 {[%clk 0:00:38]} 24. Ne3 {[%clk 0:00:42]}  Nf5 {[%clk 0:00:38]} 25. Rc1 {[%clk 0:00:34]}  Bh6 {[%clk 0:00:35]} 26. Ng2 {[%clk 0:00:32]}  Bc6 {[%clk 0:00:32]} 27. h4 {[%clk 0:00:21]}  d4 {[%clk 0:00:30]} 28. Nd2 {[%clk 0:00:20]}  Bd5 {[%clk 0:00:25]} 29. cxd4 {[%clk 0:00:17]}  cxd4 {[%clk 0:00:24]} 30. Rxc4 {[%clk 0:00:14]}  Bxc4 {[%clk 0:00:23]} 31. Nxc4 {[%clk 0:00:15]}  Rb1+ {[%clk 0:00:22]} 32. Kh2 {[%clk 0:00:16]}  Rc1 {[%clk 0:00:21]} 33. Nxa5 {[%clk 0:00:12]}  d3 {[%clk 0:00:20]} 34. Nb3 {[%clk 0:00:13]}  Rc3 {[%clk 0:00:20]} 35. Nd2 {[%clk 0:00:11]}  Rxa3 {[%clk 0:00:19]} 36. Ne4 {[%clk 0:00:11]}  Ra2 {[%clk 0:00:18]} 37. Kg1 {[%clk 0:00:10]}  d2 {[%clk 0:00:18]} 38. Nc3 {[%clk 0:00:10]}  Rc2 {[%clk 0:00:17]} 0-1


[Site "https://www.chess.com"]

[Event "Titled Tuesday Blitz August 31 2021"]
[White "Dang, Hoang Son"]
[Black "ketster"]
[WhiteFideId "12402435"]
[WhiteElo "2248"]
[BlackElo "2553"]
[Result "0-1"]
[Round "08"]
[TimeControl "180+1"]
[Date "2021.08.31"]
[WhiteClock "0:00:03"]
[BlackClock "0:00:05"]

1. d4 {[%clk 0:02:58]}  Nf6 {[%clk 0:02:58]} 2. c4 {[%clk 0:02:58]}  e6 {[%clk 0:02:56]} 3. Nf3 {[%clk 0:02:59]}  d5 {[%clk 0:02:55]} 4. g3 {[%clk 0:03:00]}  Bb4+ {[%clk 0:02:54]} 5. Bd2 {[%clk 0:03:00]}  Be7 {[%clk 0:02:54]} 6. Bg2 {[%clk 0:03:00]}  O-O {[%clk 0:02:55]} 7. O-O {[%clk 0:03:01]}  Nbd7 {[%clk 0:02:54]} 8. Qc2 {[%clk 0:03:02]}  c6 {[%clk 0:02:54]} 9. Rd1 {[%clk 0:03:01]}  Ne4 {[%clk 0:02:53]} 10. Nc3 {[%clk 0:02:59]}  f5 {[%clk 0:02:52]} 11. Bf4 {[%clk 0:02:56]}  g5 {[%clk 0:02:48]} 12. Bc1 {[%clk 0:02:54]}  Bf6 {[%clk 0:02:46]} 13. e3 {[%clk 0:02:51]}  Qe7 {[%clk 0:02:44]} 14. Nd2 {[%clk 0:02:51]}  g4 {[%clk 0:02:42]} 15. Ne2 {[%clk 0:02:39]}  Bg7 {[%clk 0:02:36]} 16. Nf4 {[%clk 0:02:38]}  Ndf6 {[%clk 0:02:35]} 17. Rb1 {[%clk 0:02:23]}  Bd7 {[%clk 0:02:32]} 18. b4 {[%clk 0:02:22]}  Rac8 {[%clk 0:02:29]} 19. Nxe4 {[%clk 0:02:21]}  Nxe4 {[%clk 0:02:26]} 20. Bxe4 {[%clk 0:02:21]}  fxe4 {[%clk 0:02:19]} 21. a4 {[%clk 0:02:19]}  a6 {[%clk 0:02:11]} 22. Qa2 {[%clk 0:02:15]}  Bh6 {[%clk 0:02:02]} 23. b5 {[%clk 0:02:13]}  Bxf4 {[%clk 0:01:56]} 24. exf4 {[%clk 0:02:12]}  Rf7 {[%clk 0:01:42]} 25. bxa6 {[%clk 0:02:10]}  bxa6 {[%clk 0:01:42]} 26. Rb7 {[%clk 0:02:09]}  Qf6 {[%clk 0:01:39]} 27. Be3 {[%clk 0:02:08]}  Be8 {[%clk 0:01:33]} 28. Rdb1 {[%clk 0:02:07]}  Rcc7 {[%clk 0:01:31]} 29. Rb8 {[%clk 0:02:03]}  Rfe7 {[%clk 0:01:29]} 30. Qa3 {[%clk 0:01:56]}  c5 {[%clk 0:01:23]} 31. cxd5 {[%clk 0:01:40]}  exd5 {[%clk 0:01:19]} 32. dxc5 {[%clk 0:01:32]}  d4 {[%clk 0:01:18]} 33. R1b6 {[%clk 0:01:30]}  Qg7 {[%clk 0:01:00]} 34. Bc1 {[%clk 0:01:04]}  e3 {[%clk 0:00:58]} 35. fxe3 {[%clk 0:01:04]}  dxe3 {[%clk 0:00:57]} 36. Qb3+ {[%clk 0:00:58]}  Qf7 {[%clk 0:00:49]} 37. Qc3 {[%clk 0:00:27]}  e2 {[%clk 0:00:45]} 38. Bd2 {[%clk 0:00:25]}  Qd5 {[%clk 0:00:42]} 39. Be1 {[%clk 0:00:19]}  Rxc5 {[%clk 0:00:31]} 40. Qb3 {[%clk 0:00:11]}  Qxb3 {[%clk 0:00:27]} 41. Rxb3 {[%clk 0:00:12]}  Kf7 {[%clk 0:00:24]} 42. Kf2 {[%clk 0:00:12]}  Bxa4 {[%clk 0:00:23]} 43. R3b6 {[%clk 0:00:11]}  Bb5 {[%clk 0:00:23]} 44. Rd8 {[%clk 0:00:08]}  Rc1 {[%clk 0:00:22]} 45. Rdd6 {[%clk 0:00:07]}  Rec7 {[%clk 0:00:21]} 46. Rf6+ {[%clk 0:00:07]}  Kg7 {[%clk 0:00:21]} 47. Rfe6 {[%clk 0:00:05]}  Rd1 {[%clk 0:00:17]} 48. f5 {[%clk 0:00:04]}  Kf7 {[%clk 0:00:16]} 49. Bb4 {[%clk 0:00:04]}  Rf1+ {[%clk 0:00:14]} 50. Kg2 {[%clk 0:00:03]}  Rb1 {[%clk 0:00:11]} 51. Rf6+ {[%clk 0:00:04]}  Kg7 {[%clk 0:00:09]} 52. Bf8+ {[%clk 0:00:04]}  Kg8 {[%clk 0:00:09]} 53. Bh6 {[%clk 0:00:04]}  Rg1+ {[%clk 0:00:05]} 54. Kxg1 {[%clk 0:00:02]}  e1=Q+ {[%clk 0:00:05]} 55. Kg2 {[%clk 0:00:03]}  Rc2+ {[%clk 0:00:05]} 0-1


[Site "https://www.chess.com"]

[Event "Titled Tuesday Blitz August 31 2021"]
[White "Dobrov, Vladimir"]
[Black "Naroditsky, Daniel"]
[WhiteFideId "4136594"]
[BlackFideId "2026961"]
[WhiteElo "2614"]
[BlackElo "2608"]
[Result "0-1"]
[Round "08"]
[TimeControl "180+1"]
[Date "2021.08.31"]
[WhiteClock "0:00:18"]
[BlackClock "0:00:16"]

1. d4 {[%clk 0:03:00]}  Nf6 {[%clk 0:02:58]} 2. c4 {[%clk 0:03:01]}  g6 {[%clk 0:02:53]} 3. Nc3 {[%clk 0:03:01]}  Bg7 {[%clk 0:02:54]} 4. e4 {[%clk 0:03:01]}  d6 {[%clk 0:02:54]} 5. Be2 {[%clk 0:03:01]}  O-O {[%clk 0:02:53]} 6. Nf3 {[%clk 0:03:02]}  e5 {[%clk 0:02:52]} 7. O-O {[%clk 0:03:02]}  exd4 {[%clk 0:02:50]} 8. Nxd4 {[%clk 0:03:03]}  Re8 {[%clk 0:02:51]} 9. f3 {[%clk 0:03:02]}  c6 {[%clk 0:02:51]} 10. Kh1 {[%clk 0:02:48]}  Na6 {[%clk 0:02:49]} 11. Bg5 {[%clk 0:02:45]}  Nc5 {[%clk 0:02:42]} 12. Qd2 {[%clk 0:02:22]}  Qb6 {[%clk 0:02:16]} 13. Rad1 {[%clk 0:02:18]}  a5 {[%clk 0:02:08]} 14. Bf4 {[%clk 0:01:50]}  Rd8 {[%clk 0:01:59]} 15. Be3 {[%clk 0:01:45]}  Qc7 {[%clk 0:01:54]} 16. Rfe1 {[%clk 0:01:41]}  a4 {[%clk 0:01:50]} 17. Bf1 {[%clk 0:01:41]}  Be6 {[%clk 0:01:48]} 18. Bg5 {[%clk 0:01:19]}  Re8 {[%clk 0:01:43]} 19. Bf4 {[%clk 0:01:18]}  Rad8 {[%clk 0:01:37]} 20. Nc2 {[%clk 0:01:12]}  Qb6 {[%clk 0:01:36]} 21. Be3 {[%clk 0:01:07]}  Qa5 {[%clk 0:01:30]} 22. Qf2 {[%clk 0:00:49]}  b6 {[%clk 0:01:01]} 23. a3 {[%clk 0:00:44]}  Qa8 {[%clk 0:00:59]} 24. Nb4 {[%clk 0:00:43]}  h5 {[%clk 0:00:50]} 25. Qh4 {[%clk 0:00:43]}  Nh7 {[%clk 0:00:49]} 26. Bd4 {[%clk 0:00:37]}  Bh6 {[%clk 0:00:38]} 27. Qf2 {[%clk 0:00:37]}  Qb7 {[%clk 0:00:38]} 28. Be3 {[%clk 0:00:37]}  Bg7 {[%clk 0:00:38]} 29. Rd2 {[%clk 0:00:37]}  Nb3 {[%clk 0:00:38]} 30. Rdd1 {[%clk 0:00:38]}  Nc5 {[%clk 0:00:35]} 31. Bd4 {[%clk 0:00:38]}  Bh6 {[%clk 0:00:34]} 32. Be3 {[%clk 0:00:38]}  Bf8 {[%clk 0:00:35]} 33. h3 {[%clk 0:00:36]}  Be7 {[%clk 0:00:34]} 34. f4 {[%clk 0:00:37]}  Qc8 {[%clk 0:00:32]} 35. f5 {[%clk 0:00:35]}  gxf5 {[%clk 0:00:32]} 36. exf5 {[%clk 0:00:35]}  Bd7 {[%clk 0:00:30]} 37. g4 {[%clk 0:00:35]}  hxg4 {[%clk 0:00:28]} 38. hxg4 {[%clk 0:00:36]}  Bf6 {[%clk 0:00:26]} 39. Rxd6 {[%clk 0:00:35]}  Bxc3 {[%clk 0:00:23]} 40. bxc3 {[%clk 0:00:31]}  Bxf5 {[%clk 0:00:24]} 41. Rxd8 {[%clk 0:00:22]}  Be4+ {[%clk 0:00:22]} 42. Bg2 {[%clk 0:00:22]}  Bxg2+ {[%clk 0:00:15]} 43. Qxg2 {[%clk 0:00:18]}  Qxd8 {[%clk 0:00:15]} 44. Nxc6 {[%clk 0:00:18]}  Qh4+ {[%clk 0:00:16]} 0-1


[Site "https://www.chess.com"]

[Event "Titled Tuesday Blitz August 31 2021"]
[White "Erdogdu, Mert"]
[Black "Dong, Bao Nghia"]
[WhiteFideId "6301495"]
[BlackFideId "12400343"]
[WhiteElo "2718"]
[BlackElo "2605"]
[Result "1-0"]
[Round "08"]
[TimeControl "180+1"]
[Date "2021.08.31"]
[WhiteClock "0:00:56"]
[BlackClock "0:00:45"]

1. e4 {[%clk 0:03:00]}  e6 {[%clk 0:03:00]} 2. d4 {[%clk 0:03:00]}  d5 {[%clk 0:03:00]} 3. exd5 {[%clk 0:03:01]}  exd5 {[%clk 0:03:01]} 4. c4 {[%clk 0:03:02]}  c6 {[%clk 0:03:01]} 5. Nc3 {[%clk 0:03:02]}  Nf6 {[%clk 0:02:58]} 6. Nf3 {[%clk 0:03:00]}  Be7 {[%clk 0:02:58]} 7. Bd3 {[%clk 0:03:00]}  h6 {[%clk 0:02:58]} 8. O-O {[%clk 0:03:00]}  Bg4 {[%clk 0:02:59]} 9. h3 {[%clk 0:02:55]}  Bh5 {[%clk 0:02:58]} 10. g4 {[%clk 0:02:55]}  Nxg4 {[%clk 0:02:53]} 11. hxg4 {[%clk 0:02:54]}  Bxg4 {[%clk 0:02:54]} 12. Re1 {[%clk 0:02:50]}  O-O {[%clk 0:02:53]} 13. Bf4 {[%clk 0:02:43]}  Nd7 {[%clk 0:02:51]} 14. cxd5 {[%clk 0:02:42]}  Bb4 {[%clk 0:02:39]} 15. dxc6 {[%clk 0:02:31]}  bxc6 {[%clk 0:02:39]} 16. Bg3 {[%clk 0:02:21]}  Nf6 {[%clk 0:02:37]} 17. Be2 {[%clk 0:02:15]}  Bxc3 {[%clk 0:02:32]} 18. bxc3 {[%clk 0:02:15]}  Ne4 {[%clk 0:02:32]} 19. Qd3 {[%clk 0:02:04]}  Bf5 {[%clk 0:02:28]} 20. Qe3 {[%clk 0:02:00]}  Re8 {[%clk 0:02:25]} 21. Ne5 {[%clk 0:01:57]}  f6 {[%clk 0:02:14]} 22. Nxc6 {[%clk 0:01:48]}  Qc8 {[%clk 0:02:01]} 23. d5 {[%clk 0:01:44]}  Bg6 {[%clk 0:01:46]} 24. Qf4 {[%clk 0:01:29]}  Nxc3 {[%clk 0:01:37]} 25. Bf3 {[%clk 0:01:25]}  Qa6 {[%clk 0:01:24]} 26. Re7 {[%clk 0:01:15]}  Be4 {[%clk 0:01:11]} 27. Re1 {[%clk 0:01:07]}  f5 {[%clk 0:00:45]} 28. Bxe4 {[%clk 0:00:56]}  fxe4 {[%clk 0:00:45]} 29. Qf7+ {[%clk 0:00:56]} 1-0


[Site "https://www.chess.com"]